Cogmind - Beta 15 @@@ ROGUE MODE // 2025.10.14 @ 05:27:54 Player: shapeshifter Result: Destroyed by G-47 Trooper with Particle Gun Performance ------------- Evolutions (2) 1000 Regions Visited (8) 1600 Robots Destroyed (117) 585 Value Destroyed (3326) 3326 Prototype IDs (11) 220 Alien Tech Used (0) 0 Bonus (28) 28 TOTAL SCORE: 6759 Bonus ------- High Alert Combat Kills 43 Follower Combat Kills 201 Friendly Fire -216 Cogmind --------- Core Integrity 0/550 Matter 9/300 Energy 42/100 System Corruption 1% Temperature Cool (14) Movement Rolling (145) Ox3 Location -8/Storage Parts ------- > --- POWER (1) -------- (None) > --- PROPULSION (3) --- Compact Wheel > --- UTILITY (5) ------ High-capacity Storage Unit Salvage Targeting Computer Medium Armor Plating Hacking Suite Hacking Suite > --- WEAPON (2) ------- Enhanced Autogun Enhanced Autogun > --- INVENTORY (20) --- Heavy Ion Engine Improved Heat Sink Humpback Humpback High-capacity Matter Pod (200) Hacking Suite Improved Trap Extractor (5/6 Explosive) Drone Bay (2/2) Advanced Beam Rifle Advanced Beam Rifle Advanced EMP Blaster Advanced EMP Blaster Peak State ------------ > --- POWER ------------ Light Nuclear Core > --- PROPULSION ------- Light Treads Improved Treads Improved Treads > --- UTILITY ---------- High-capacity Storage Unit Salvage Targeting Computer Medium Armor Plating Hacking Suite Hacking Suite > --- WEAPON ----------- Improved Assault Rifle Advanced EMP Blaster > --- INVENTORY -------- Humpback Humpback High-capacity Matter Pod Medium Armor Plating Medium Armor Plating Medium Armor Plating Reactive Plating Improved Trap Extractor Drone Bay Advanced Beam Cannon Advanced EMP Blaster Advanced EMP Blaster [Rating: 29] Favorites ----------- Power Ion Engine Engine Ion Engine Power Core Light Nuclear Core Propulsion Light Treads Treads Light Treads Wheel Wheel Utility Hacking Suite Device Seismic Detector Storage Small Storage Unit Processor Salvage Targeting Computer Hackware Hacking Suite Protection Improved Light Armor Plating Weapon Advanced Beam Cannon Energy Gun Small Laser Energy Cannon Advanced Beam Cannon Ballistic Gun Assault Rifle Launcher Grenade Launcher Build | -11 -10 -10 -9 -9 -9 -8 -8 -8 ------- Run | Yrd Mat Min Mat Min Exi Min Mat Sto Slots Evolved 4 | . . . 2 . . . 2 . Power . | . . . . . . . . . Propulsion 1 | . . . . . . . 1 . Utility 3 | . . . 2 . . . 1 . Weapon . | . . . . . . . . . Parts Attached 77 | 7 3 3 26 . 1 . 14 23 Power 9 | 1 1 . 2 . . . 2 3 Engine 8 | 1 1 . 2 . . . 2 2 Core 1 | . . . . . . . . 1 Reactor . | . . . . . . . . . Propulsion 17 | 2 . 2 6 . . . 3 4 Treads 7 | 2 . . 2 . . . 3 . Leg . | . . . . . . . . . Wheel 10 | . . 2 4 . . . . 4 Hover . | . . . . . . . . . Flight . | . . . . . . . . . Utility 23 | 2 . 1 9 . . . 7 4 Device 3 | 1 . 1 1 . . . . . Storage 3 | 1 . . 1 . . . 1 . Processor 2 | . . . 1 . . . 1 . Hackware 2 | . . . 1 . . . . 1 Protection 13 | . . . 5 . . . 5 3 Artifact . | . . . . . . . . . Weapon 28 | 2 2 . 9 . 1 . 2 12 Energy Gun 8 | . 1 . 3 . . . 1 3 Energy Cannon 5 | . . . 4 . 1 . . . Ballistic Gun 10 | 2 . . 1 . . . 1 6 Ballistic Cannon . | . . . . . . . . . Launcher 5 | . 1 . 1 . . . . 3 Special Weapon . | . . . . . . . . . Impact Weapon . | . . . . . . . . . Slashing Weapon . | . . . . . . . . . Piercing Weapon . | . . . . . . . . . Special Melee Weapon . | . . . . . . . . . Unidentified Prototypes 9 | . . . 3 . . . 1 5 Corrupted Parts 1 | . . 1 . . . . . . System Corruption 8 | . . 8 . . . . . . Parts Lost 32 | . 2 4 9 . . 3 1 13 Power 6 | . 1 . 1 . . 1 . 3 Propulsion 13 | . . 2 4 . . 1 . 6 Utility 7 | . . 1 1 . . 1 1 3 Weapon 6 | . 1 1 3 . . . . 1 Highest Loss Streak 4 | . 1 2 3 . . 2 1 4 To Critical Strikes . | . . . . . . . . . Average Backups 8 | 2 5 2 8 13 14 13 10 13 Power . | . . . . . . . . 1 Propulsion . | 1 2 1 . 1 1 1 . . Utility 4 | . . . 4 9 10 11 8 8 Weapon 2 | . 2 1 3 3 2 1 1 2 Tool/Special . | . . . . . . . . . Unused Backups 18 | . 1 . 3 . 4 . 1 9 Power 1 | . . . . . . . . 1 Propulsion 1 | . . . 1 . . . . . Utility 10 | . . . . . 3 . 1 6 Weapon 6 | . 1 . 2 . 1 . . 2 Tool/Special . | . . . . . . . . . Average Slot Usage (%) 89 | . 98 83 80 100 100 86 89 86 Engine 10 | . 13 14 7 11 11 1 7 7 Treads 15 | . 28 10 2 22 22 19 23 11 Wheel 6 | . . 12 18 . . . . 7 Device 6 | . 14 7 3 12 11 11 6 . Storage 11 | . 14 14 11 11 11 11 9 9 Processor 2 | . . . 4 . . . 1 9 Hackware 6 | . . . 4 11 11 11 9 17 Protection 5 | . . . 7 9 11 11 15 6 Energy Gun 6 | . 4 14 12 . . . 7 1 Energy Cannon 4 | . . . 1 22 22 22 7 1 Ballistic Gun 9 | . 22 2 4 . . . 1 14 Launcher 1 | . . 6 2 . . . . . Peak Build Rating 29 | 7 7 10 23 21 20 19 28 29 Average Rating 15 | 4 6 5 14 20 19 17 24 26 On Entrance 13 | . 7 7 10 20 20 19 14 27 Naked Turns . | . . . . . . . . . Heaviest Build 70 | 14 16 17 46 37 37 32 70 64 Greatest Support 66 | 40 40 40 40 40 40 40 66 66 Greatest Overweight (x) 15 | 2 . 4 3 . . 1 15 3 Average Overweight (x) . | . . . . . . . . 1 Largest Inventory Capacity 20 | 8 8 8 15 15 15 15 20 20 Average Capacity 13 | 7 8 8 13 15 15 15 19 20 Most Carried 20 | 5 7 4 15 14 15 15 17 20 Average Carried 9 | 3 5 2 8 13 14 15 12 15 Final Capacity 20 | 8 8 8 15 15 15 15 20 20 Final Carried 15 | 4 4 1 14 13 15 15 13 14 Class Distribution -------------------- 78% | Mutant 19% | Hacker-Mutant Dominant Class ---------------- Mutant | -10/Materials Mutant | -10/Mines Mutant | -9/Materials Mutant | -9/Mines Mutant | -9/Exiles Mutant | -8/Mines Mutant | -8/Materials Hacker-Mutant | -8/Storage Resources | -11 -10 -10 -9 -9 -9 -8 -8 -8 ----------- Run | Yrd Mat Min Mat Min Exi Min Mat Sto Matter Collected 2216 | 290 325 118 525 . 60 5 241 652 Remotely . | . . . . . . . . . Salvage Created 4423 | 71 365 215 1320 137 . 138 393 1784 Parts 241 | 4 26 22 81 5 . 2 21 80 Haulers Intercepted 7 | . . . 3 . . . . 4 Recyclers Shooed 1 | . . . 1 . . . . . Parts Field Recycled . | . . . . . . . . . Retrieved Matter . | . . . . . . . . . Parts Self-Destructed . | . . . . . . . . . Prevented . | . . . . . . . . . Kills | -11 -10 -10 -9 -9 -9 -8 -8 -8 ------- Run | Yrd Mat Min Mat Min Exi Min Mat Sto Combat Hostiles Destroyed 87 | . 14 8 25 3 . 1 7 29 Guns 54 | . 7 3 20 . . . 5 19 Cannons 9 | . . . 1 3 . 1 2 2 AOE 21 | . 7 5 4 . . . . 5 Classes Destroyed 13 | 2 4 1 4 . . . 1 1 Worker 5 | . . 1 3 . . . . 1 Builder 4 | . . . 3 . . . . 1 Tunneler 2 | 1 . 1 . . . . . . Hauler 7 | . . . 3 . . . . 4 Recycler 4 | 1 . . 2 . . 1 . . Operator 1 | . . . 1 . . . . . Watcher 6 | . 2 . 2 . . . 1 1 Swarmer 20 | . 6 4 6 . . . . 4 Grunt 50 | . 6 4 15 3 . 1 2 19 Protector 2 | . . . . . . . . 2 Sentry 12 | . . . 4 . . . 4 4 Hunter 1 | . . . . . . . 1 . Subdweller 2 | . 2 . . . . . . . Thug 1 | . . . . . . . . 1 Best Kill Streak 11 | 2 3 3 11 3 . 2 4 8 Combat Bots Only 8 | . 3 2 6 3 . 1 3 8 Max Kills in Single Turn 3 | 1 2 2 3 1 . 1 1 3 Gunslinging . | . . . . . . . . . Exploded 3 | . 2 2 2 . . . . 3 Melee . | . . . . . . . . . Uniques/NPCs Destroyed . | . . . . . . . . . Combat | -11 -10 -10 -9 -9 -9 -8 -8 -8 -------- Run | Yrd Mat Min Mat Min Exi Min Mat Sto Hostile Shots Fired 542 | . 70 32 121 10 . 53 29 227 Missed 145 | . 17 9 28 1 . 15 12 63 Hits 397 | . 53 23 93 9 . 38 17 164 Melee 1 | . . . 1 . . . . . Projectile 396 | . 53 23 92 9 . 38 17 164 AOE 1 | . 1 . . . . . . . Critical Strikes 6 | . . . . . . 2 1 3 Part Disruptions 1 | . 1 . . . . . . . Damage Taken 5473 | . 671 232 1176 111 . 656 224 2403 Core 1112 | . 165 43 232 21 . 101 61 489 Absorbed by Shields . | . . . . . . . . . Ignored by Resistances 32 | . . . 4 . . . 28 . Core Remaining (%) 42 | 100 . 16 . . . 11 . . Volleys Fired 335 | 5 52 23 110 6 . 10 15 114 Largest 2 | 2 2 2 2 2 . 2 2 2 Hottest 143 | 40 40 60 143 136 . 136 129 91 Shots Fired 550 | 10 86 28 151 12 . 20 30 213 Gun 443 | 10 74 22 142 . . . 17 178 Cannon 73 | . . . 5 12 . 20 13 23 Launcher 34 | . 12 6 4 . . . . 12 Special . | . . . . . . . . . Kinetic 305 | 10 74 7 40 . . . 2 172 Thermal 211 | . . 15 107 12 . 20 28 29 Explosive 22 | . 12 6 4 . . . . . Electromagnetic 12 | . . . . . . . . 12 Robot Hit Streak 21 | 4 9 4 21 6 . 6 13 14 Robot Miss Streak 17 | 2 5 2 17 2 . 1 2 4 Penetration Max . | . . . . . . . . . Secondary Targets 3 | . . . 1 . . . . 2 Max Gunslinging Chain 1 | . . . 1 . . . . 1 Shots Hit Robots 353 | 7 49 14 100 6 . 15 21 141 Core Hits 192 | 4 29 14 64 4 . 5 11 61 Critical Kills 1 | . . . . . . . 1 . Critical Parts Destroyed . | . . . . . . . . . Critical Strikes 3 | . . . 1 . . . 1 1 Burn 2 | . . . 1 . . . . 1 Meltdown 1 | . . . . . . . 1 . Melee Attacks . | . . . . . . . . . Impact . | . . . . . . . . . Slashing . | . . . . . . . . . Piercing . | . . . . . . . . . Sneak Attacks . | . . . . . . . . . Combat Hostiles . | . . . . . . . . . Follow-up Attacks . | . . . . . . . . . Damage Inflicted 8031 | 74 962 442 2252 123 . 326 437 3415 Guns 4703 | 74 462 140 1622 . . . 231 2174 Cannons 1042 | . . . 83 123 . 326 206 304 Explosions 2286 | . 500 302 547 . . . . 937 Melee . | . . . . . . . . . Ramming . | . . . . . . . . . Kinetic 2992 | 74 462 51 340 . . . 11 2054 Thermal 2906 | . . 138 1365 123 . 326 426 528 Explosive 1300 | . 500 253 547 . . . . . Electromagnetic 833 | . . . . . . . . 833 Impact . | . . . . . . . . . Slashing . | . . . . . . . . . Piercing . | . . . . . . . . . Highest Corruption 8 | . . 8 . . . . . 1 Average Corruption 1 | . . 8 . . . . . 1 Corruption Purged . | . . . . . . . . . Corruption Blocked . | . . . . . . . . . Effects 9 | . . . . . . . . 9 Matter Fused 4 | . . . . . . . . 4 Heat Flow Errors 1 | . . . . . . . . 1 Data Loss (minor) 1 | . . . . . . . . 1 Data Loss (major) 1 | . . . . . . . . 1 Alerts 1 | . . . . . . . . 1 Weapon Failures 1 | . . . . . . . . 1 Overload Shots . | . . . . . . . . . Overflow Damage 30 | . 21 9 . . . . . . Projectiles . | . . . . . . . . . Explosions 30 | . 21 9 . . . . . . Melee . | . . . . . . . . . Knockbacks . | . . . . . . . . . Impact . | . . . . . . . . . Kinetic . | . . . . . . . . . Secondary . | . . . . . . . . . Self-Inflicted Damage 293 | . 13 25 45 . . . . 210 Shots 13 | . 1 2 1 . . . . 9 Rammed . | . . . . . . . . . Targets Rammed . | . . . . . . . . . Kicked . | . . . . . . . . . Crushed . | . . . . . . . . . Highest Temperature 332 | . 18 6 332 261 . 234 223 240 Average Temperature 73 | . 5 5 84 116 . 118 75 54 Received Heat Transfer 2190 | . 198 33 504 69 . 378 99 909 Effects 1 | . . . 1 . . . . . Energy Bleed 1 | . . . 1 . . . . . Siege Activations . | . . . . . . . . . Martial Activations . | . . . . . . . . . Shielding Activations . | . . . . . . . . . Robots Disrupted . | . . . . . . . . . Combat Hostiles . | . . . . . . . . . Robots Corrupted 3 | . . . . . . . . 3 Combat Hostiles 3 | . . . . . . . . 3 Parts Fried 6 | . . . . . . . . 6 Impact Corruptions . | . . . . . . . . . Robots Melted 1 | . . . . . . . 1 . Combat Hostiles . | . . . . . . . . . Parts Melted 9 | . 2 . 5 1 . . . 1 Heat Transferred 5280 | . . 250 2471 222 . 592 777 968 Parts Sabotaged . | . . . . . . . . . Parts Stolen . | . . . . . . . . . Parts Stripped . | . . . . . . . . . Power Chain Reactions 3 | . . . . . . . . 3 Alert | -11 -10 -10 -9 -9 -9 -8 -8 -8 ------- Run | Yrd Mat Min Mat Min Exi Min Mat Sto Maximum Alert Level 2 | . . . 2 1 . . . 1 Low Security (%) 83 | 100 100 100 70 . . 100 100 70 Level 1 11 | . . . 5 100 . . . 29 Level 2 5 | . . . 24 . . . . . Level 3 . | . . . . . . . . . Level 4 . | . . . . . . . . . Level 5 . | . . . . . . . . . High Security . | . . . . . . . . . Max Security . | . . . . . . . . . Peak Influence 552 | 10 152 121 552 306 . 20 60 364 Initial 201 | . . 9 3 201 . . . 5 Average 120 | 1 84 35 192 261 . 4 20 188 Influence Increases 3306 | 10 528 300 1117 115 . 25 201 1010 Destroy 0b10 Robot/C 1840 | . 240 160 620 60 . 20 140 600 Destroy 0b10 Robot/NC 155 | 10 10 10 70 . . 5 5 45 Destroy Leader 396 | . 44 30 150 10 . . 52 110 Allied During Kill 42 | . . . 25 . . . . 17 Successful Hack 63 | . 10 . 22 . . . 3 28 Select Force Hacks 180 | . 60 . 60 . . . . 60 Disable Machine 225 | . 45 15 45 45 . . . 75 Destroy Structure 240 | . 74 55 80 . . . 1 30 Lose Combat Pursuer 165 | . 45 30 45 . . . . 45 Influence Decreases 3076 | 10 504 314 610 416 216 25 188 793 Entered New Map 562 | . . 15 7 316 216 . . 8 Time Decay 1989 | 10 484 259 453 100 . 20 178 485 Lost Part 295 | . 20 40 90 . . 5 10 130 Lost Ally 80 | . . . 60 . . . . 20 Purge Threat 150 | . . . . . . . . 150 Squads Dispatched 17 | . 4 . 7 . . . . 6 Investigation 10 | . 4 . 3 . . . . 3 Extermination . | . . . . . . . . . Reinforcement 4 | . . . 3 . . . . 1 Assault 3 | . . . 1 . . . . 2 Garrison . | . . . . . . . . . Intercept . | . . . . . . . . . Searches Triggered . | . . . . . . . . . Construction Impeded 1 | . . . 1 . . . . . Haulers Reinforced . | . . . . . . . . . Active Scanning Responses . | . . . . . . . . . Cargo Convoy Interrupts . | . . . . . . . . . Stealth | -11 -10 -10 -9 -9 -9 -8 -8 -8 --------- Run | Yrd Mat Min Mat Min Exi Min Mat Sto Distress Signals 12 | . 3 . 4 . . . 1 4 Communications Jammed . | . . . . . . . . . Distress Signals . | . . . . . . . . . Times Spotted 139 | . 26 10 43 2 . 3 8 47 Peak Tracking Total 10 | . 6 3 5 2 . 3 2 10 Tactical Retreats 10 | . 3 2 3 . . . . 2 Traps | -11 -10 -10 -9 -9 -9 -8 -8 -8 ------- Run | Yrd Mat Min Mat Min Exi Min Mat Sto Traps Triggered 9 | . 1 . 1 . . . 4 3 Indirectly 3 | . . . . . . . . 3 Trap Hack Attempts . | . . . . . . . . . Triggered . | . . . . . . . . . Disarmed . | . . . . . . . . . Reprogrammed . | . . . . . . . . . Reused . | . . . . . . . . . Traps Extracted . | . . . . . . . . . Installed . | . . . . . . . . . Triggered . | . . . . . . . . . Most Traps Carried 5 | . . . . 5 5 5 5 5 Machines | -11 -10 -10 -9 -9 -9 -8 -8 -8 ---------- Run | Yrd Mat Min Mat Min Exi Min Mat Sto Machines Disabled 16 | . 3 1 4 3 . . . 5 Max in Single Turn 3 | . 3 1 2 1 . . . 1 Machines Repaired . | . . . . . . . . . Machines Dismantled . | . . . . . . . . . Machines Sabotaged . | . . . . . . . . . Overloaded Fab Kills . | . . . . . . . . . Hacking | -11 -10 -10 -9 -9 -9 -8 -8 -8 --------- Run | Yrd Mat Min Mat Min Exi Min Mat Sto Machines Accessed 29 | . 8 1 7 . 1 . 2 10 Terminals 21 | . 6 . 5 . . . 2 8 Fabricators . | . . . . . . . . . Repair Stations . | . . . . . . . . . Recycling Units 6 | . 2 . 2 . . . . 2 Scanalyzers . | . . . . . . . . . Garrison Access . | . . . . . . . . . Total Hacks 78 | . 24 1 19 . 1 . 6 27 Successful 49 | . 11 1 15 . 1 . 4 17 Failed 29 | . 13 . 4 . . . 2 10 Catastrophic 1 | . . . . . . . . 1 Database Lockouts . | . . . . . . . . . Manual 49 | . 19 . 15 . . . 6 9 Terminals 58 | . 17 . 13 . . . 6 22 Fabricators . | . . . . . . . . . Repair Stations . | . . . . . . . . . Recycling Units 18 | . 7 . 6 . . . . 5 Scanalyzers . | . . . . . . . . . Garrison Access . | . . . . . . . . . Terminal Hacks 12 | . 1 1 2 . 1 . . 7 Record 1 | . . . . . 1 . . . Prototype ID Bank 1 | . . . . . . . . 1 Open Door 2 | . . 1 . . . . . 1 Branch Access Points 1 | . . . . . . . . 1 Unreport Threat 1 | . . . . . . . . 1 Recall Investigation 1 | . . . . . . . . 1 Registered Components 1 | . . . . . . . . 1 Zone Layout 4 | . 1 . 2 . . . . 1 Fabricator Hacks . | . . . . . . . . . Repair Station Hacks . | . . . . . . . . . Recycling Unit Hacks 6 | . 1 . 3 . . . . 2 Retrieve Components 6 | . 1 . 3 . . . . 2 Scanalyzer . | . . . . . . . . . Garrison Access Hacks . | . . . . . . . . . Unauthorized Hacks 31 | . 9 . 10 . . . 4 8 Terminals 25 | . 7 . 8 . . . 4 6 Botnet 9 | . 2 . 3 . . . 2 2 Skim 16 | . 5 . 5 . . . 2 4 Fabricators . | . . . . . . . . . Repair Stations . | . . . . . . . . . Recycling Units 6 | . 2 . 2 . . . . 2 Tunnel 6 | . 2 . 2 . . . . 2 Scanalyzers . | . . . . . . . . . Garrison Access . | . . . . . . . . . Data Cores Recovered 1 | . . . 1 . . . . . Used . | . . . . . . . . . Hacking Detections 19 | . 6 . 3 . . . 2 8 Full Trace Events 1 | . . . . . . . . 1 Feedback Events . | . . . . . . . . . Feedback Blocked . | . . . . . . . . . Robot Schematics Acquired . | . . . . . . . . . Robots Built . | . . . . . . . . . Authchips . | . . . . . . . . . Time . | . . . . . . . . . Total Robot Build Rating . | . . . . . . . . . Part Schematics Acquired . | . . . . . . . . . Parts Built . | . . . . . . . . . Authchips . | . . . . . . . . . Time . | . . . . . . . . . Total Part Build Rating . | . . . . . . . . . Parts Repaired . | . . . . . . . . . Time . | . . . . . . . . . Parts Recycled . | . . . . . . . . . Recycled Matter . | . . . . . . . . . Retrieved Matter . | . . . . . . . . . Retrieved Components 20 | . 10 . 4 . . . . 6 Parts Scanalyzed . | . . . . . . . . . Part Schematics Acquired . | . . . . . . . . . Parts Damaged . | . . . . . . . . . Bothacking | -11 -10 -10 -9 -9 -9 -8 -8 -8 ------------ Run | Yrd Mat Min Mat Min Exi Min Mat Sto Used RIF Installer . | . . . . . . . . . Robots Hacked . | . . . . . . . . . Non-combat . | . . . . . . . . . Combat . | . . . . . . . . . Robot Hacks Applied . | . . . . . . . . . Relay Couplers Released . | . . . . . . . . . Fabnet Peak Effective % . | . . . . . . . . . Robots Rewired . | . . . . . . . . . Allies Hacked . | . . . . . . . . . Hacks Repelled . | . . . . . . . . . Allies | -11 -10 -10 -9 -9 -9 -8 -8 -8 -------- Run | Yrd Mat Min Mat Min Exi Min Mat Sto Total Allies 5 | . . 3 . . . . . 2 Largest Group 3 | . . 3 3 . . . . 2 Highest-Rated Group 62 | . . 40 40 . . . . 62 Highest-Rated Ally 31 | . . 16 16 . . . . 31 Total Orders . | . . . . . . . . . Ally Attacks 54 | . . . 33 . . . . 21 Total Damage 727 | . . . 331 . . . . 396 Kills 9 | . . . 6 . . . . 3 Allies Corrupted . | . . . . . . . . . Allies Melted . | . . . . . . . . . Intel | -11 -10 -10 -9 -9 -9 -8 -8 -8 ------- Run | Yrd Mat Min Mat Min Exi Min Mat Sto Active Infowar (turns) 2429 | 31 1467 429 502 . . . . . Optics 502 | . . . 502 . . . . . Seismic 1927 | 31 1467 429 . . . . . . Robot Analysis Total . | . . . . . . . . . Derelict Logs Recovered 4 | . . 3 . 1 . . . . Drone Launches . | . . . . . . . . . Drone Recoveries . | . . . . . . . . . Exploration | -11 -10 -10 -9 -9 -9 -8 -8 -8 ------------- Run | Yrd Mat Min Mat Min Exi Min Mat Sto Turns Passed 6284 | 127 1467 824 1256 215 445 69 600 1281 Spaces Moved 3202 | 73 566 635 761 112 273 14 231 537 Core 33 | 24 . 3 . . . . 6 . Treads 1774 | 49 566 242 78 112 273 14 225 215 Legs . | . . . . . . . . . Wheels 1395 | . . 390 683 . . . . 322 Hover . | . . . . . . . . . Flight . | . . . . . . . . . Fastest Speed 50 | 50 160 90 80 160 160 160 160 105 Average Speed 141 | 132 160 117 101 160 160 200 214 162 Slowest Speed 800 | 160 160 250 160 160 160 240 800 320 Overloaded Moves . | . . . . . . . . . Propulsion Burnouts . | . . . . . . . . . Robots Hopped . | . . . . . . . . . Potential Cave-ins . | . . . . . . . . . Cave-ins Triggered . | . . . . . . . . . Exploration Rate (%) 47 | 5 82 97 57 30 53 9 16 79 Regions Visited 8 Branch Regions 5 Pre-discovered Areas 11 | . 5 1 2 . 1 . . 2 Known Exits Taken 4 | . 1 . . 1 . 1 1 . Unknown Exits Taken 4 | 1 . 1 1 . 1 . . . Scrap Searched 2 | . . 2 . . . . . . Spaces Dug . | . . . . . . . . . Terrain Destroyed 244 | . 83 64 76 . . . . 21 Melee . | . . . . . . . . . Projectile . | . . . . . . . . . AOE 244 | . 83 64 76 . . . . 21 Terrain Rammed . | . . . . . . . . . Walls Destroyed . | . . . . . . . . . Machines Disabled . | . . . . . . . . . Actions | -11 -10 -10 -9 -9 -9 -8 -8 -8 --------- Run | Yrd Mat Min Mat Min Exi Min Mat Sto Total 4457 | 95 1047 684 1106 135 283 36 309 762 Wait 660 | . 420 19 146 15 . 13 8 39 Move 3194 | 72 565 634 760 111 272 13 230 537 Hop . | . . . . . . . . . Pick Up 105 | 11 3 1 37 . 5 . 23 25 Fast Attach 4 | . . . 4 . . . . . Attach 72 | 7 2 4 20 . . . 19 20 Detach 2 | . . . 1 . . . . 1 Swap 36 | . 4 2 10 2 1 . 5 12 Drop 48 | . 1 . 18 1 5 . 9 14 Fire 335 | 5 52 23 110 6 . 10 15 114 Melee . | . . . . . . . . . Ram . | . . . . . . . . . Kick . | . . . . . . . . . Crush . | . . . . . . . . . Escape Stasis . | . . . . . . . . . Rewire 1 | . . 1 . . . . . . Trap . | . . . . . . . . . Miscellaneous . | . . . . . . . . . Route ------- -11/Scrapyard -10/Materials (discovered 4 exits: *Mat x3 / *Min) -10/Mines (discovered 3 exits: *Mat x2 / [*Sub]) -9/Materials (discovered 4 exits: *Mat x3 / [*Min]) -9/Mines -9/Exiles -8/Mines -8/Materials (discovered 2 exits: *Sto x2) -8/Storage (discovered 2 exits: *Fac / Rec) History --------- Turn | Location | Event 8 | -11/Scrapyard | Discovered new exit (range 16) 128 | -11/Scrapyard | Entered Materials 289 | -10/Materials | Discovered new exit (range 9) 302 | -10/Materials | Build established: Mutant 430 | -10/Materials | Discovered new exit (range 15) 728 | -10/Materials | Discovered new exit (range 14) 828 | -10/Materials | Derelicts attacked the area 1066 | -10/Materials | Core integrity fell below 50% 1324 | -10/Materials | Learned 2 Storage zone layouts 1371 | -10/Materials | Identified exit to Mines 1380 | -10/Materials | Loaded intel: 3 trap records 1401 | -10/Materials | Learned location of Subcaves (-10) 1433 | -10/Materials | Learned 4 Materials zone layouts 1595 | -10/Materials | Entered Mines 1647 | -10/Mines | Discovered new exit (range 7) 1757 | -10/Mines | Core integrity fell below 20% 1883 | -10/Mines | Discovered new exit (range 8) 1916 | -10/Mines | Learned Materials terminal intel 2057 | -10/Mines | Discovered new exit (range 11) 2174 | -10/Mines | Assisted by bots powering up and referring to "LRC-V3" 2191 | -10/Mines | Met a Derelict who couldn't figure out how to use a Trap Extractor 2280 | -10/Mines | Learned location of Zion (-7) 2419 | -10/Mines | Entered Materials 2419 | -9/Materials | Accompanied by 3 allies 2419 | -9/Materials | Evolved 2 slots: Utility x2 2420 | -9/Materials | Identified exit to Materials 2421 | -9/Materials | Loaded intel: 10 terminal locations 2717 | -9/Materials | Discovered exit to Materials (range 5) 2975 | -9/Materials | Discovered new exit (range 7) 3458 | -9/Materials | Core integrity fell below 50% 3531 | -9/Materials | Lost 3 parts (1n2w) 3619 | -9/Materials | First assault squad dispatched 3639 | -9/Materials | Learned Storage emergency access door positions 3675 | -9/Materials | Entered Mines 3816 | -9/Mines | Identified exit to Exiles 3843 | -9/Mines | Found a hidden stash of uninstalled traps 3883 | -9/Mines | Deemed a non-threat by the Exiles lab entrance 3890 | -9/Mines | Entered Exiles 3927 | -9/Exiles | Met 8R-AWN 3953 | -9/Exiles | Met EX-HEX 4049 | -9/Exiles | Met EX-DEC 4140 | -9/Exiles | Discovered new exit (range 10) 4335 | -9/Exiles | Entered Mines 4338 | -8/Mines | Discovered exit to Materials (range 11) 4381 | -8/Mines | Core integrity fell below 20% 4404 | -8/Mines | Entered Materials 4404 | -8/Materials | Evolved 2 slots: Propulsion x1, Utility x1 4405 | -8/Materials | Identified exit to Storage 5004 | -8/Materials | Entered Storage 5005 | -8/Storage | Identified exit to Recycling 5006 | -8/Storage | Identified exit to Factory 5114 | -8/Storage | Met a pair of Derelict thieves 5302 | -8/Storage | Destroyed 8 combat bots 5332 | -8/Storage | Build established: Hacker-Mutant 5967 | -8/Storage | Core integrity fell below 50% 6003 | -8/Storage | Lost 3 parts (1n1u1w) 6264 | -8/Storage | Core integrity fell below 20% 6283 | -8/Storage | Lost 4 parts (1p2n1u) 6285 | -8/Storage | Destroyed by G-47 Trooper with Particle Gun Last Messages --------------- 06224_ System corrupted: Component data lost. 06228_ Chain reaction triggered in Hvy. Ion Engine. 06228_ Transfer Shaft disabled. 06234_ Alarm Trap short circuited. 06234_ An alarm sounds. 06234_ ALERT: Alarm triggered, dispatching investigation squad. 06236_ Dropped Enh. Autogun. 06243_ Com. Wheel destroyed. 06250_ Med. Armor Plating destroyed. 06252_ Wheel destroyed. 06257_ S-10 Pest IFF system glitched. 06258_ Y-45 Defender destroyed. 06258_ K-01 Serf collects debris. 06268_ Dropped Reactive Plating. 06270_ System corrupted: Heat flow error (+153). 06270_ S-10 Pest destroyed. 06270_ K-01 Serf collects debris. 06279_ S-10 Pest destroyed. 06279_ Switching to secondary target: Y-45 Defender. 06279_ K-01 Serf collects debris. Map ----- +----------------------------------------------------+ | "G ## ?"]["? #???????????#######????????# | | ?"" """ ## " [" #??????????????????????????# | | ??# """ ## "" " #??????????????????????????# | | ??# """ !## #???#"##???????????????????# | | ### ## #???# T#???????????????????# | | #####+#########+########+###################### | | ! % *% | | [ !!! = ! | | !! != * | | #########################+##+#################### | | ##########????????????# #?????????????????? | | # #????????????# """" #?????????????????? | | # #????????????# "[=" #?????????????????? | | # #????????????# "[ " #?????????????????? | | + / #????????????# " [" #?????????????????? | | # [#????????????# "=[" #?????????????????? | | # #????????????# !! #?????????????????? | | # #????????????# ! #?????????????????? | | # = #????????????# =!= #?????????????????? | | # #????????????#####"####?????????????????? | | ##########???????????????# ############????????? | | ?????????????????????????# [ ?????? | | ?????????????????????????# ?????? | | ????????????????????????###k# #########?????????? | | ????????????????????????#*g=Y= #???????????? | | ????????????????????????#@kk"" """ #???????????? | | ???????????????????????#%! [""" """ ????????????? | | ???????????????????????##[ %""" """ #???????????? | | ????????????????????????# =* ?????????????? | | ????????????????????????############?????????????? | | | | | | | | | | | | | | | | | | | | | | | | | | | | | | | | | | | | | | | | | +----------------------------------------------------+ Best States ------------- Heat Dissipation 41 Energy Generation 14 Energy Capacity 280 Matter Stores 300 Matter Capacity 300 Sight Range 18 Terrain Scan Density 10 Armor Coverage 375 Resistance: KI 20 Evasion (%) 50 Recoil Reduction 3 Salvage Targeting 1 Offensive Hacking 20 Trap Extractor Capacity 6 Item Schematics ----------------- None Robot Schematics ------------------ None Fabricated ------------ Nothing Repaired ---------- Nothing Alien Tech Used ----------------- None Achievements -------------- None Challenges ------------ None Game ------ Seed EfficiencyCloakTearclaws Manual? 0 Play Time 00:35:10 Cumulative 380.6 hours Start 2025.10.14 @ 04:15:29 End 2025.10.14 @ 05:27:54 Sessions 2 Manual Loads 0 Difficulty Rogue Special Mode None Game No. 497 Rogue 497 Adventurer 0 Explorer 0 Win Type - Total 11 Types 6/0/1/2/1/0/1/0/0/0 Lore% 88 Gallery% 83 Achievement% 70 Wizard Run 0 Options --------- Layout 0 ASCII 0 Keyboard 0 Movement Mouse Keybinds 0 Fullscreen 1 Font 24/Tamsyn Map View 76x50 Zoom Use 0% Tactical HUD 1 Map Filters NONE Filters NONE Steam 1 RUN: e9fad638-081b-4dd9-a426-53d29f23bdaa